bitfinex-derivatives/quotes_SOLF0:USTF0_20251002
["timestamp","ask_amount","ask_price","bid_price","bid_amount"]
[1759447806553,6.96,234.13,234.09,7.33]
[1759447806750,6.96,234.14,234.06,4.70007903]
[1759447806956,6.96,234.14,234.06,7.33]
[1759447807454,6.96,234.12,234.06,3.8424]
[1759447807847,3.8412,234.14,234.04,4.70007903]
[1759447807848,6.96,234.1,234.04,4.70007903]
[1759447808044,6.96,234.1,234.03,12.03007903]
[1759447808852,6.96,234.1,234.03,7.33]
[1759447809055,6.96,234.1,234.02,8.54317903]
[1759447809361,6.96,234.1,234.02,3.8431]
[1759447809855,6.96,234.08,234.01,4.70007903]
[1759447810257,6.96,234.08,234.0,3.8434]
[1759447810453,1.36376538,234.06,233.99,12.03007903]
[1759447810647,6.96,234.05,233.96,4.70007903]
[1759447811255,6.96,234.05,233.95,13.39384441]
[1759447811852,6.96,234.05,233.96,4.70007903]
[1759447812258,1.36376538,234.03,233.95,7.33]
[1759447812459,6.96,234.02,233.95,7.33]
[1759447813559,6.96,234.02,233.96,5.20786538]
[1759447813863,6.96,234.02,233.96,3.8441]
[1759447814256,6.96,234.02,233.95,8.69376538]
[1759447814856,0.02737584,234.01,233.95,8.69376538]
[1759447815463,0.02737584,234.01,233.95,12.53796538]
[1759447818158,0.02737584,234.01,233.95,8.69376538]
[1759447818355,0.02737584,234.01,233.95,7.33]
[1759447818559,0.02737584,234.01,233.95,8.69376538]
[1759447818759,0.02737584,234.01,233.96,3.844]
[1759447818962,0.02737584,234.01,233.97,7.33]
[1759447819161,6.98737584,234.01,233.97,7.33]
[1759447820558,0.02737584,234.01,233.97,7.33]
[1759447820765,6.96,234.0,233.97,7.33]
[1759447821261,0.02737584,234.01,234.0,7.33]
[1759447822757,0.02737584,234.01,234.0,7.75]
[1759447823861,6.96,234.09,234.0,7.75]
[1759447824059,6.96,234.09,234.05,1.36376538]
[1759447824255,7.13,234.1,234.05,1.36376538]
[1759447824659,7.13,234.1,234.03,1.36376538]
[1759447825369,7.13,234.08,234.01,7.52]
[1759447826068,3.8423,234.07,234.01,7.52]
[1759447828469,7.13,234.06,233.99,3.8436]
[1759447829771,10.9726,234.06,234.0,0.02703028]
[1759447830372,12.33636538,234.06,234.0,0.02703028]
[1759447830775,3.8428,234.05,234.0,0.02703028]
[1759447830978,7.13,234.04,234.0,0.02703028]
[1759447831473,3.8429,234.04,234.0,0.02703028]
[1759447831674,7.31,234.03,234.0,0.02703028]
[1759447832678,3.8429,234.04,234.0,0.02703028]
[1759447833178,7.31,234.03,234.0,0.02703028]
[1759447833480,3.8429,234.04,234.0,0.02703028]
[1759447833673,7.31,234.03,234.0,0.02703028]
[1759447834178,12.51626538,234.06,234.0,0.02703028]
[1759447834873,11.1525,234.06,234.0,0.02703028]
[1759447835271,7.31,234.06,234.0,0.02703028]
[1759447840382,7.31,234.07,234.01,3.8432]
[1759447841378,7.31,234.07,234.03,6.96]
[1759447841883,7.31,234.07,234.04,6.96]
[1759447844374,104.8418,234.1,234.03,3.8428]
[1759447844575,112.1518,234.1,234.03,10.8028]
[1759447845483,112.1518,234.1,234.04,3.8426]
[1759447846981,7.31,234.08,234.0,0.02703028]
[1759447847182,7.31,234.05,234.0,0.02703028]
[1759447847376,1.36376538,234.06,234.0,0.02703028]
[1759447847574,7.31,234.05,234.0,0.02703028]
[1759447847780,1.36376538,234.06,234.0,0.02703028]
[1759447848789,7.31,234.05,234.0,0.02703028]
[1759447849581,3.8428,234.04,234.0,0.02703028]
[1759447850092,7.31,234.03,234.0,0.02703028]
[1759447851580,5.20616538,234.06,234.0,0.02703028]
[1759447852688,5.20616538,234.06,234.0,3.87033028]
[1759447853791,3.8424,234.06,234.0,3.87033028]
[1759447854197,7.31,234.05,234.0,3.87033028]
[1759447854398,7.31,234.07,234.0,3.87033028]
[1759447855100,7.31,234.04,234.0,0.02703028]
[1759447855499,101.0,234.11,234.0,0.02703028]
[1759447855500,7.31,234.01,234.0,0.02703028]
[1759447855796,7.73,234.01,234.0,0.02703028]
[1759447856189,7.31,234.01,234.0,0.02703028]
[1759447859900,7.73,234.01,233.94,3.8444]
[1759447860100,1.36376538,233.99,233.94,3.8444]
[1759447860303,7.31,233.98,233.91,8.54487903]
[1759447860801,7.31,233.98,233.9,4.70007903]
[1759447860996,5.20736538,233.99,233.89,12.70734276]
[1759447861199,5.20736538,233.99,233.88,6.30528272]
[1759447861398,28.36,234.04,233.88,9.64159637]
[1759447861399,7.31,233.95,233.88,9.64159637]
[1759447861695,6.97,233.95,233.88,4.94151734]
[1759447861899,6.97,233.95,233.87,3.8454]
[1759447862200,6.97,233.95,233.89,7.62]
[1759447862709,6.97,233.95,233.85,6.06384441]
[1759447863095,6.97,233.95,233.88,5.20916538]
[1759447864307,6.97,233.95,233.88,3.8454]
[1759447864503,6.97,233.95,233.86,3.8457]
[1759447865606,6.97,233.95,233.88,3.8454]
[1759447865805,6.97,233.95,233.86,7.62]
[1759447866308,6.97,233.95,233.89,3.8451]
[1759447867307,0.02717053,233.94,233.89,3.8451]
[1759447867601,6.97,233.93,233.89,3.8451]
[1759447867804,0.02717053,233.94,233.89,3.8451]
[1759447868004,6.97,233.93,233.89,3.8451]
[1759447868205,0.02717053,233.94,233.89,3.8451]
[1759447868404,6.97,233.93,233.89,3.8451]
[1759447868605,0.02717053,233.94,233.89,3.8451]
[1759447869404,6.97,233.93,233.86,7.62]
[1759447869709,6.97,233.93,233.84,2.13664846]
[1759447870209,6.97,233.93,233.86,3.8457]
[1759447871814,10.8147,233.93,233.84,2.13664846]
[1759447872012,10.8147,233.93,233.83,3.8461]
[1759447872209,6.97,233.93,233.83,3.8461]
[1759447873109,6.97,233.93,233.82,7.62]
[1759447874712,6.97,233.89,233.82,7.62]
[1759447874909,0.02717053,233.94,233.82,7.62]
[1759447875113,6.97,233.93,233.82,7.62]
[1759447876814,10.8147,233.93,233.85,3.8458]
[1759447877015,6.97,233.93,233.82,7.62]
[1759447878617,10.8146,233.93,233.84,3.8459]
[1759447880419,3.8448,233.92,233.84,3.8459]
[1759447881722,3.8451,233.9,233.82,7.62]
[1759447882315,3.8451,233.9,233.82,11.4662]
[1759447884116,6.97,233.91,233.82,7.62]
[1759447884422,0.02721194,233.88,233.82,7.62]
[1759447884812,0.02721194,233.88,233.79,59.8389]
[1759447884813,0.02721194,233.88,233.87,7.66]
[1759447889420,0.02721194,233.88,233.87,10.21664846]
[1759447889920,0.02721194,233.88,233.87,7.66]
[1759447891632,0.02721194,233.88,233.84,11.576]
[1759447891925,7.58721194,233.88,233.84,11.576]
[1759447892122,0.02721194,233.88,233.86,3.8457]
[1759447892325,0.02721194,233.88,233.87,7.73]
[1759447893526,0.02721194,233.88,233.86,3.8457]
[1759447893728,0.02721194,233.88,233.86,11.5757]
[1759447895517,0.02721194,233.88,233.86,3.8457]
[1759447895721,0.02721194,233.88,233.84,3.846]
[1759447896027,0.02721194,233.88,233.85,7.73]
[1759447897130,7.58721194,233.88,233.85,7.73]
[1759447897525,7.58721194,233.88,233.84,3.846]
[1759447897924,7.58721194,233.88,233.85,7.73]
[1759447900126,7.58721194,233.88,233.81,3.8464]
[1759447900331,7.58721194,233.88,233.81,11.5764]
[1759447901033,0.02721194,233.88,233.81,7.73]
[1759447902637,0.02721194,233.88,233.85,7.73]
[1759447904034,0.02721194,233.88,233.82,11.5763]
[1759447904334,0.02721194,233.88,233.82,7.73]
[1759447905636,0.02721194,233.88,233.84,7.73]
[1759447905836,0.02721194,233.88,233.83,3.8461]
[1759447906940,0.02721194,233.88,233.84,7.73]
[1759447907129,0.02721194,233.88,233.83,3.8461]
[1759447907838,0.02721194,233.88,233.84,7.73]
[1759447908539,0.02721194,233.88,233.83,3.8461]
[1759447908741,0.02721194,233.88,233.84,7.73]
[1759447909130,0.02721194,233.88,233.83,3.8461]
[1759447909336,0.02721194,233.88,233.84,7.73]
[1759447909538,0.02721194,233.88,233.83,3.8461]
[1759447909938,0.02721194,233.88,233.84,7.73]
[1759447910142,0.02721194,233.88,233.82,7.73]
[1759447910533,0.02721194,233.88,233.82,4.70007903]
[1759447910734,0.02721194,233.88,233.83,7.73]
[1759447910929,0.02721194,233.88,233.81,170.03517903]
[1759447911138,0.02721194,233.88,233.82,7.73]
[1759447911538,0.02721194,233.88,233.85,3.8458]
[1759447911739,0.02721194,233.88,233.86,7.73]
[1759447912140,0.02721194,233.88,233.85,3.8458]
[1759447912335,0.02721194,233.88,233.87,7.73]
[1759447919937,0.02721194,233.88,233.87,12.43007903]
[1759447921046,0.02721194,233.88,233.87,7.73]
[1759447923144,7.53,234.0,233.89,7.5]
[1759447923343,7.53,234.0,233.91,7.5]
[1759447924442,7.53,234.0,233.93,3.8445]
[1759447924637,7.53,234.0,233.93,3.87156351]
[1759447925044,7.53,234.0,233.93,0.02706351]
[1759447926239,7.53,233.96,233.93,0.02706351]
[1759447926440,1.36732041,233.97,233.93,0.02706351]
[1759447926839,1.36732041,233.99,233.93,0.02706351]
[1759447927647,1.36732041,233.99,233.93,3.87156351]
[1759447928439,7.53,234.0,233.93,3.87156351]
[1759447929139,311.72392356,234.05,233.93,0.02706351]
[1759447929353,7.53,234.05,233.98,7.5]
[1759447929950,7.53,234.05,233.98,11.3436]
[1759447930446,7.53,234.05,233.98,7.5]
[1759447931854,7.53,234.05,234.0,3.8434]
[1759447932050,8.89732041,234.06,234.0,3.8434]
[1759447932853,7.53,234.06,234.0,3.8434]
[1759447935858,5.20962041,234.07,234.01,0.02748457]
[1759447936063,12.73962041,234.07,234.01,0.02748457]
[1759447937059,7.53,234.07,234.01,0.02748457]
[1759447937751,7.53,234.08,234.02,3.8431]
[1759447937956,101.0,234.1,234.01,7.52748457]
[1759447938366,8.89732041,234.11,234.03,3.8428]
[1759447938666,8.89732041,234.11,234.04,7.5]
[1759447939668,7.53,234.11,234.04,7.5]
[1759447942070,7.53,234.11,234.04,11.3426]
[1759447942475,7.53,234.11,234.04,7.5]
[1759447943169,7.53,234.11,234.04,8.86732041]
[1759447943477,7.53,234.15,234.04,8.86732041]
[1759447944576,7.53,234.15,234.09,3.8419]
[1759447945073,8.89732041,234.15,234.09,3.8419]
[1759447948070,8.89732041,234.15,234.07,0.02715087]
[1759447948274,8.89732041,234.15,234.07,3.86935087]
[1759447949378,7.53,234.15,234.07,3.86935087]
[1759447949578,1.36732041,234.14,234.07,3.86935087]
[1759447950178,1.36732041,234.14,234.08,7.45]
[1759447950882,7.28,234.16,234.08,7.45]
[1759447952074,7.28,234.16,234.12,3.8413]
[1759447952274,1.36732041,234.18,234.12,3.8413]
[1759447952481,7.68,234.19,234.12,10.8013]
[1759447953675,11.5204,234.19,234.12,10.8013]
[1759447956080,11.5204,234.19,234.13,0.02735847]
[1759447958775,7.68,234.19,234.13,3.86855847]
[1759447960890,7.68,234.19,234.13,0.02735847]
[1759447964991,11.5204,234.19,234.13,0.02735847]
[1759447965179,7.68,234.17,234.13,0.02735847]
[1759447965384,7.68,234.14,234.13,0.02735847]
[1759447966382,7.68,234.18,234.13,6.98735847]
[1759447966785,7.68,234.21,234.13,6.98735847]
[1759447967487,3.8403,234.2,234.13,10.82845847]
[1759447967693,7.68,234.21,234.14,1.36732041]
[1759447968694,7.68,234.21,234.15,3.8408]
[1759447971188,59.7059,234.32,234.15,3.8408]
[1759447971189,1.36732041,234.4,234.2,61.10322041]
[1759447971389,1.36732041,234.42,234.31,6.96]
[1759447971589,1.36732041,234.42,234.33,1.36732041]
[1759447971988,1.36732041,234.42,234.34,3.67595874]
[1759447972189,1.36732041,234.42,234.35,3.67595874]
[1759447972389,1.36732041,234.42,234.36,3.67595874]
[1759447972588,1.36732041,234.42,234.37,3.67595874]
[1759447972789,1.36732041,234.42,234.38,3.67595874]
[1759447972988,3.8364,234.44,234.33,5.20522041]
[1759447973185,7.68,234.43,234.36,1.36732041]
[1759447973386,7.68,234.43,234.38,8.32732041]
[1759447974094,7.68,234.43,234.39,3.70534418]
[1759447974295,7.68,234.46,234.4,12.03266459]
[1759447974598,11.5158,234.47,234.41,3.70534418]
[1759447974791,3.8358,234.47,234.42,3.70534418]
[1759447974993,7.68,234.46,234.43,3.70534418]
[1759447975191,3.8358,234.47,234.44,3.70534418]
[1759447975491,3.8358,234.47,234.4,8.32732041]
[1759447975492,7.68,234.46,234.45,3.70534418]
[1759447977789,9.04732041,234.46,234.45,3.70534418]
[1759447978789,114.12732041,234.46,234.45,3.70534418]
[1759447978992,112.76,234.46,234.38,1.36732041]
[1759447980200,105.08,234.45,234.38,1.36732041]
[1759447980591,7.68,234.46,234.4,1.36732041]
[1759447980795,7.68,234.46,234.3,6.96]
[1759447980998,7.68,234.46,234.23,59.7269]
[1759447980999,7.68,234.46,234.36,6.96]
[1759447981200,7.68,234.46,234.37,1.36732041]
[1759447981602,112.74,234.46,234.39,1.36732041]
[1759447981999,112.74,234.46,234.36,6.96]
[1759447982000,3.8361,234.45,234.37,1.36732041]
[1759447982303,108.8961,234.45,234.37,1.36732041]
[1759447982701,110.26342041,234.45,234.37,1.36732041]
[1759447982895,7.45,234.44,234.35,1.36732041]
[1759447983099,7.45,234.42,234.35,1.36732041]
[1759447983302,7.45,234.42,234.35,8.33732041]
[1759447984205,7.45,234.42,234.36,0.02700679]
[1759447985705,7.45,234.37,234.36,0.02700679]
[1759447989815,112.89,234.37,234.26,6.97]
[1759447990015,7.45,234.34,234.2,6.97]
[1759447990418,7.45,234.3,234.21,3.8398]
[1759447990621,45.81,234.3,234.21,16.7959952]
[1759447990814,38.36,234.3,234.2,6.97]
[1759447991114,7.45,234.29,234.2,6.97]
[1759447992715,3.8388,234.28,234.2,6.97]
[1759447995626,3.8388,234.28,234.2,10.8101]
[1759447997416,7.45,234.29,234.2,6.97]
[1759447997617,7.45,234.35,234.23,2.12869017]
[1759447997821,7.45,234.35,234.24,6.97]
[1759447998320,105.04,234.34,234.24,6.97]
[1759447999730,3.838,234.33,234.24,10.8093]
[1759448001128,7.45,234.32,234.24,10.8093]
[1759448002928,3.8377,234.36,234.26,6.97]
[1759448003329,59.7215,234.26,234.14,4.70007903]
[1759448003526,7.45,234.26,234.12,10.8113]
[1759448003728,7.45,234.24,234.12,10.8113]
[1759448004029,106.16,234.23,234.12,10.8113]
[1759448004231,7.45,234.22,234.12,10.8113]
[1759448004430,3.8401,234.21,234.12,10.8113]
[1759448005131,7.45,234.22,234.12,10.8113]
[1759448006034,3.8401,234.21,234.12,6.97]
[1759448006228,7.05,234.2,234.12,6.97]
[1759448006630,7.05,234.2,234.13,3.8413]
[1759448006829,3.8397,234.23,234.12,6.97]
[1759448008028,179.0412,234.42,234.15,7.38]
[1759448008029,7.05,234.32,234.15,7.38]
[1759448008229,7.05,234.3,234.15,7.38]
[1759448009128,3.839,234.27,234.19,3.8401]
[1759448009431,10.889,234.27,234.19,3.8401]
[1759448015641,7.0,234.38,234.27,7.66]
[1759448016443,3.8377,234.35,234.27,7.66]
[1759448018650,10.8373,234.38,234.27,11.4988]
[1759448018843,7.0,234.39,234.13,66.5802692]
[1759448019147,3.839,234.27,234.16,7.66]
[1759448019347,7.0,234.37,234.19,2.12869017]
[1759448019549,7.0,234.34,234.2,7.66]
[1759448021241,59.6814,234.42,234.28,59.7156]
[1759448021242,7.0,234.42,234.28,59.7156]
[1759448021446,7.0,234.42,234.34,7.66]
[1759448022051,7.0,234.42,234.34,22.99]
[1759448022948,7.0,234.42,234.35,3.8377]
[1759448026051,7.0,234.42,234.37,3.8373]
[1759448026255,3.8359,234.46,234.37,3.8373]
[1759448032760,3.8362,234.45,234.37,3.8373]
[1759448035061,3.8363,234.44,234.36,7.66]
[1759448038170,7.0,234.47,234.39,11.4969]
[1759448038361,7.0,234.47,234.39,7.66]
[1759448038976,3.8362,234.45,234.39,7.66]
[1759448039773,10.8357,234.47,234.39,7.66]
[1759448040170,3.8352,234.5,234.37,2.12869017]
[1759448040374,3.8352,234.5,234.41,7.66]
[1759448041568,3.8352,234.5,234.43,3.8362]
[1759448041767,3.8352,234.5,234.44,7.04]
[1759448041974,7.0,234.51,234.38,7.04]
[1759448042675,7.0,234.51,234.39,59.6874]
[1759448042876,310.6,234.56,234.43,3.8364]
[1759448042877,7.52,234.55,234.43,3.8364]
[1759448043071,7.52,234.55,234.41,7.04]
[1759448043769,3.8348,234.53,234.45,3.8359]
[1759448043971,3.8348,234.53,234.45,7.04]
[1759448044282,7.52,234.55,234.45,7.04]
[1759448044782,7.52,234.51,234.32,80.23122945]
[1759448045082,7.52,234.51,234.4,7.04]
[1759448047685,11.3551,234.51,234.43,3.8363]
[1759448048184,7.52,234.51,234.4,7.04]
[1759448048384,3.8355,234.49,234.42,3.8364]
[1759448048584,7.52,234.51,234.43,7.04]
[1759448049477,11.3551,234.51,234.43,10.8762]
[1759448049678,7.52,234.51,234.43,7.04]
[1759448050281,7.52,234.51,234.45,1.36068181]
[1759448050583,3.8348,234.53,234.45,5.19658181]
[1759448050783,1.36068181,234.52,234.43,7.04]
[1759448051382,3.8351,234.51,234.45,1.36068181]
[1759448052180,3.8347,234.54,234.45,5.19658181]
[1759448052382,3.8347,234.54,234.46,7.04]
[1759448052774,8.88068181,234.55,234.46,7.04]
[1759448053684,3.835,234.52,234.46,7.04]
[1759448056485,1.36068181,234.54,234.46,7.04]
[1759448056984,5.19538181,234.54,234.46,7.04]
[1759448057189,1.36068181,234.54,234.46,7.04]
[1759448057885,7.52,234.55,234.46,7.04]
[1759448058086,1.36068181,234.53,234.46,7.04]
[1759448058679,5.19548181,234.53,234.46,7.04]
[1759448060387,3.8348,234.53,234.46,7.04]
[1759448063489,7.52,234.48,234.44,14.65]
[1759448063694,7.52,234.48,234.44,21.69]
[1759448064792,7.52,234.48,234.44,14.65]
[1759448064990,1.36068181,234.51,234.45,7.3]
[1759448065193,3.8351,234.51,234.45,7.3]
[1759448065693,7.29,234.52,234.45,7.3]
[1759448066489,7.29,234.52,234.46,5.19658181]
[1759448067289,0.02698503,234.51,234.46,5.19658181]
[1759448067498,0.02698503,234.51,234.47,7.3]
[1759448068196,0.02698503,234.51,234.46,5.19658181]
[1759448068392,0.02698503,234.51,234.47,7.3]
[1759448068594,0.02698503,234.51,234.46,5.19658181]
[1759448068897,0.02698503,234.51,234.47,7.3]
[1759448069087,0.02698503,234.51,234.47,11.1355]
[1759448069288,0.02698503,234.51,234.47,3.8355]
[1759448069693,0.02698503,234.51,234.48,7.3]
[1759448069897,0.02698503,234.51,234.47,3.8355]
[1759448070095,0.02698503,234.51,234.48,5.19608181]
[1759448070594,0.02698503,234.51,234.5,12.49588181]
[1759448070791,7.29,234.61,234.5,8.66068181]
[1759448070989,7.29,234.61,234.54,1.36068181]
[1759448071196,7.29,234.61,234.55,7.3]
[1759448071394,11.1229,234.65,234.56,1.36068181]
[1759448072096,11.1229,234.65,234.56,5.19488181]
[1759448072297,3.8331,234.63,234.56,1.36068181]
[1759448072498,3.8331,234.63,234.55,7.3]
[1759448072695,7.25,234.63,234.4,59.6838]
[1759448072898,7.25,234.6,234.5,7.06]
[1759448073093,7.25,234.57,234.5,7.06]
[1759448074397,3.8344,234.56,234.5,7.06]
[1759448074999,7.25,234.57,234.5,7.06]
[1759448076299,1.36068181,234.58,234.5,7.06]
[1759448076300,8.61068181,234.62,234.52,1.36068181]
[1759448076506,8.61068181,234.62,234.53,7.06]
[1759448076706,7.25,234.62,234.53,7.06]
[1759448076910,7.25,234.62,234.55,1.36068181]
[1759448078608,7.25,234.62,234.56,3.8342]
[1759448078904,8.61068181,234.66,234.57,1.36068181]
[1759448079303,7.25,234.66,234.57,1.36068181]
[1759448079608,7.25,234.66,234.59,1.36068181]
[1759448080408,11.0826,234.66,234.59,1.36068181]
[1759448081501,59.6075,234.71,234.56,7.08697377]
[1759448081502,64.34583998,234.84,234.69,7.06]
[1759448081710,1.36068181,234.78,234.69,7.06]
[1759448082100,105.1308,234.77,234.69,7.06]
[1759448082304,106.49148181,234.77,234.69,7.06]
[1759448082603,101.3,234.77,234.67,1.36068181]
[1759448082808,3.8312,234.75,234.67,1.36068181]
[1759448083208,107.0,234.74,234.67,1.36068181]
[1759448083808,4.33,234.76,234.67,1.36068181]
[1759448084007,106.98,234.75,234.67,1.36068181]
[1759448084198,4.33,234.76,234.67,1.36068181]
[1759448084400,106.94,234.74,234.67,1.36068181]
[1759448085504,106.94,234.74,234.65,7.06]
[1759448085505,8.1616,234.72,234.65,7.06]
[1759448088915,8.1616,234.72,234.66,14.1]
[1759448089210,106.76,234.71,234.66,14.1]
[1759448089416,4.33,234.71,234.66,14.1]
[1759448089712,4.33,234.71,234.66,21.16]
[1759448089908,106.72,234.7,234.66,21.16]
[1759448090310,4.33,234.71,234.66,21.16]
[1759448090512,106.7,234.7,234.66,21.16]
[1759448091208,106.7,234.7,234.66,21.18715545]
[1759448091513,106.68,234.69,234.66,21.18715545]
[1759448092513,4.33,234.71,234.66,21.18715545]
[1759448093112,106.62,234.7,234.67,1.36068181]
[1759448093311,4.33,234.68,234.66,14.12715545]
[1759448093608,4.33,234.67,234.66,14.12715545]
[1759448093814,4.33,234.67,234.66,14.1]
[1759448096322,110.89,234.67,234.66,14.1]
[1759448096811,114.7224,234.67,234.66,14.1]
[1759448100217,114.7424,234.67,234.66,14.1]
[1759448101613,114.7424,234.67,234.66,14.0724787]
[1759448101819,8.1624,234.67,234.66,14.0724787]
[1759448102018,114.6424,234.67,234.66,14.0724787]
[1759448102419,114.6224,234.67,234.66,14.0724787]
[1759448104318,114.5424,234.67,234.66,14.0724787]
[1759448104822,106.4,234.67,234.66,14.0724787]
[1759448105018,8.1621,234.7,234.66,14.0724787]
[1759448105218,106.4,234.69,234.66,14.0724787]
[1759448105422,8.1621,234.7,234.66,14.0724787]
[1759448105623,114.5423,234.68,234.66,14.0724787]
[1759448105822,106.38,234.67,234.66,14.0724787]
[1759448106024,110.71,234.67,234.66,14.0724787]
[1759448106524,3.8323,234.68,234.66,14.0724787]
[1759448106723,106.34,234.67,234.66,14.0724787]
[1759448106920,4.33,234.69,234.66,14.0724787]
[1759448107120,101.0,234.73,234.66,14.0724787]
[1759448107121,106.34,234.68,234.66,14.0724787]
[1759448107324,106.34,234.67,234.66,21.2724787]
[1759448108623,106.3,234.67,234.66,21.2724787]
[1759448109624,3.8319,234.71,234.66,21.2724787]
[1759448109825,4.33,234.7,234.66,21.2724787]
[1759448110328,106.26,234.69,234.67,7.2]
[1759448110529,4.33,234.7,234.67,7.2]
[1759448110723,106.24,234.68,234.67,7.2]
[1759448110920,106.24,234.68,234.66,14.0724787]
[1759448111328,4.33,234.7,234.66,14.0724787]
[1759448111630,106.24,234.67,234.66,21.2724787]
[1759448113525,106.14,234.67,234.66,21.2724787]
[1759448116528,106.06,234.67,234.66,14.0724787]
[1759448118228,4.33,234.69,234.66,14.0724787]
[1759448118428,105.98,234.68,234.66,14.0724787]
[1759448119329,4.33,234.69,234.66,14.0724787]
[1759448119532,105.96,234.68,234.66,14.0724787]
[1759448119734,105.96,234.67,234.66,14.0724787]
[1759448120227,4.33,234.69,234.66,14.0724787]
[1759448120430,105.94,234.68,234.66,14.0724787]
[1759448120729,4.33,234.69,234.66,14.0724787]
[1759448121029,105.94,234.67,234.66,14.0724787]
[1759448121429,4.33,234.71,234.66,14.0724787]
[1759448121631,105.92,234.67,234.66,14.0724787]
[1759448122632,3.8317,234.72,234.66,14.0724787]
[1759448122935,105.86,234.71,234.66,14.0724787]
[1759448123137,4.33,234.7,234.66,14.0724787]
[1759448123437,105.84,234.69,234.66,14.0724787]
[1759448123636,110.17,234.69,234.66,14.0724787]
[1759448124029,4.33,234.67,234.66,14.0724787]
[1759448125030,110.23,234.67,234.66,14.0724787]
[1759448126240,3.8326,234.66,234.64,0.02702962]
[1759448126733,106.02,234.65,234.64,0.02702962]
[1759448127233,106.44,234.65,234.64,0.02702962]
[1759448127439,106.44,234.65,234.5,4.70007903]
[1759448127440,3.8342,234.57,234.51,3.5148824]
[1759448127633,106.06,234.56,234.5,16.53942244]
[1759448127834,106.06,234.56,234.49,10.6348824]
[1759448128034,106.06,234.56,234.49,7.12]
[1759448128335,59.6387,234.59,234.45,3.5148824]
[1759448128535,106.16,234.58,234.46,6.34]
[1759448128835,2.12270473,234.57,234.46,6.34]
[1759448129038,2.12270473,234.58,234.46,6.34]
[1759448129242,106.34,234.57,234.46,13.46]
[1759448129448,61.75530473,234.61,234.46,13.46]
[1759448129640,106.36,234.6,234.47,2.12270473]
[1759448129836,61.75530473,234.61,234.47,2.12270473]
[1759448130145,106.36,234.59,234.47,2.12270473]
[1759448130550,3.8343,234.56,234.47,2.12270473]
[1759448131142,3.8346,234.54,234.46,13.46]
[1759448131340,310.06,234.64,234.49,7.12]
[1759448131538,106.36,234.63,234.49,7.12]
[1759448131738,3.8337,234.6,234.49,7.12]
[1759448132942,59.6323,234.61,234.49,7.12]
[1759448133753,59.6374,234.59,234.46,6.34]
[1759448134048,59.6423,234.57,234.46,6.34]
[1759448134248,2.12270473,234.54,234.46,6.34]
[1759448134448,166.053,234.53,234.46,6.34]
[1759448134649,59.6547,234.52,234.46,6.34]
[1759448135646,3.8356,234.48,234.46,6.34]
[1759448135844,106.44,234.47,234.46,6.34]
[1759448136961,106.4,234.47,234.46,6.34]
[1759448139053,106.82,234.47,234.46,6.34]
[1759448139852,3.8363,234.44,234.35,7.55]
[1759448140054,106.42,234.43,234.35,7.55]
[1759448140250,106.42,234.43,234.31,12.85203675]
[1759448140647,59.6829,234.41,234.31,12.85203675]
[1759448140849,59.6829,234.41,234.27,7.55]
[1759448141052,108.54270473,234.43,234.27,7.55]
[1759448141247,3.837,234.4,234.3,7.55]
[1759448141450,59.6699,234.46,234.3,7.55]